[Event "FIDE WCCC G10 2018"]
[Site "Santiago de Compostela"]
[Date "2018.11.14"]
[Round "10"]
[White "Chen, Yining"]
[Black "Vlasova, Olesia"]
[Result "1-0"]
[ECO "D30"]
[WhiteElo "1457"]
[BlackElo "1639"]
[Annotator "NA RC"]
[PlyCount "84"]
[EventDate "2018.11.04"]
[EventType "swiss"]
[EventCountry "ESP"]
[SourceTitle "playchess.com"]
[Source "ChessBase"]
[SourceQuality "1"]
[TimeControl "40/5400+30:1800+30"]

1. d4 {[%emt 0:00:00]} d5 {[%emt 0:00:00]} 2. c4 {[%emt 0:00:00]} e6 {[%emt 0:00:01]} 3. Nf3 {[%emt 0:00:00]} Be7 {[%emt 0:00:25]} 4. Nc3 {[%emt 0:00:00]} Nf6 {[%emt 0:00:15]} 5. Qc2 {[%emt 0:00:00]} c5 {[%emt 0:09:28]} 6. cxd5 {[%emt 0:09:31]} exd5 {[%emt 0:00:54]} 7. Bg5 {[%emt 0:04:32]} cxd4 {[%emt 0:06:22]} 8. Nxd4 {[%emt 0:01:24]} h6 {[%emt 0:06:07]} 9. Bh4 {[%emt 0:03:30]} O-O {[%emt 0:02:36]} 10. e3 {[%emt 0:04:23]} Nc6 {[%emt 0:02:27]} 11. Nxc6 {[%emt 0:05:45]} bxc6 {[%emt 0:00:15]} 12. Be2 {[%emt 0:00:14]} Re8 {[%emt 0:05:36]} 13. O-O {[%emt 0:02:00]} Bd7 {[%emt 0:03:51]} 14. Rac1 {[%emt 0:04:34]} Rb8 {[%emt 0:05:56]} 15. Bg3 {[%emt 0:03:14]} Ra8 {[%emt 0:05:24]} 16. Rfd1 {[%emt 0:01:48]} Qa5 {[%emt 0:01:40]} 17. a3 {[%emt 0:10:15]} g6 {[%emt 0:09:51]} 18. h3 {[%emt 0:13:04]} Bf8 {[%emt 0:00:38]} 19. Bf3 {[%emt 0:03:30]} Bg7 {[%emt 0:06:14]} 20. Na4 {[%emt 0:03:50]} Ne4 {[%emt 0:07:18]} 21. Bxe4 {[%emt 0:00:22]} Rxe4 {[%emt 0:00:35]} 22. b4 {[%emt 0:07:16]} Qd8 {[%emt 0:01:36]} 23. Qb3 {[%emt 0:04:05]} Re8 {[%emt 0:04:05]} 24. Nc5 {[%emt 0:01:35]} Bc8 {[%emt 0:03:12]} 25. a4 {[%emt 0:03:47]} Qg5 {[%emt 0:02:29]} 26. b5 {[%emt 0:06:07]} cxb5 {[%emt 0:00:30]} 27. axb5 {[%emt 0:00:51]} Be6 {[%emt 0:00:51]} 28. Nxe6 {[%emt 0:02:19]} fxe6 {[%emt 0:00:13]} 29. Rc7 {[%emt 0:00:21]} Qf6 {[%emt 0:07:15]} 30. Rdc1 {[%emt 0:01:31]} Kh8 {[%emt 0:01:28]} 31. Qa3 {[%emt 0:01:27]} Qb2 {[%emt 0:01:11]} 32. Qxb2 {[%emt 0:00:31]} Bxb2 {[%emt 0:00:07]} 33. R1c2 {[%emt 0:00:15]} Bf6 {[%emt 0:02:40]} 34. Rf7 {[%emt 0:01:16]} Bd8 {[%emt 0:00:44]} 35. Be5+ {[%emt 0:00:40]} Kg8 {[%emt 0:00:22]} 36. Rg7+ {[%emt 0:00:29]} Kf8 {[%emt 0:00:49]} 37. Rxg6 {[%emt 0:00:43]} a6 {[%emt 0:01:00]} 38. bxa6 {[%emt 0:00:47]} Rxa6 {[%emt 0:00:06]} 39. Rxh6 {[%emt 0:00:19]} Ba5 {[%emt 0:01:58]} 40. Rh8+ {[%emt 0:00:00]} Kf7 {[%emt 0:00:00]} 41. Rxe8 {[%emt 0:00:51]} Kxe8 {[%emt 0:00:13]} 42. Ra2 {[%emt 0:00:15]} Kd7 1-0

[Event "FIDE WCCC G10 2018"]
[Site "Santiago de Compostela"]
[Date "2018.11.14"]
[Round "10"]
[White "Wu, Abbie"]
[Black "Ho, Ngoc Vy"]
[Result "0-1"]
[ECO "C54"]
[WhiteElo "1446"]
[BlackElo "1275"]
[Annotator "NA RC"]
[PlyCount "150"]
[EventDate "2018.11.04"]
[EventType "swiss"]
[EventCountry "ESP"]
[SourceTitle "playchess.com"]
[Source "ChessBase"]
[SourceQuality "1"]
[TimeControl "40/5400+30:1800+30"]

1. e4 {[%emt 0:00:00]} e5 {[%emt 0:00:00]} 2. Nf3 {[%emt 0:00:00]} Nc6 {[%emt 0:00:40]} 3. Bc4 {[%emt 0:00:00]} Bc5 {[%emt 0:00:16]} 4. c3 {[%emt 0:00:00]} Nf6 {[%emt 0:01:15]} 5. d3 {[%emt 0:00:00]} O-O {[%emt 0:00:55]} 6. Nbd2 {[%emt 0:00:07]} d6 {[%emt 0:00:27]} 7. Bb3 {[%emt 0:00:07]} d5 {[%emt 0:02:58]} 8. Qe2 {[%emt 0:01:41]} h6 {[%emt 0:01:46]} 9. h3 {[%emt 0:01:22]} Re8 {[%emt 0:00:59]} 10. Nf1 {[%emt 0:01:36]} Be6 {[%emt 0:05:32]} 11. Ng3 {[%emt 0:02:15]} Bb6 {[%emt 0:00:51]} 12. O-O {[%emt 0:01:31]} dxe4 {[%emt 0:00:25]} 13. dxe4 {[%emt 0:02:01]} Na5 {[%emt 0:00:42]} 14. Bxe6 {[%emt 0:00:53]} Rxe6 {[%emt 0:00:28]} 15. b3 {[%emt 0:04:12]} Nh7 {[%emt 0:07:01]} 16. Bb2 {[%emt 0:02:08]} Ng5 {[%emt 0:01:29]} 17. Rfd1 {[%emt 0:02:49]} Qf6 {[%emt 0:03:56]} 18. Nf5 {[%emt 0:03:59]} Kh7 {[%emt 0:06:28]} 19. Nxg5+ {[%emt 0:06:21]} Qxg5 {[%emt 0:00:46]} 20. Rd7 {[%emt 0:00:20]} Rg6 {[%emt 0:04:20]} 21. Qf3 {[%emt 0:02:07]} Rf6 {[%emt 0:01:18]} 22. h4 {[%emt 0:03:23]} Qg6 {[%emt 0:03:21]} 23. h5 {[%emt 0:00:29]} Qg5 {[%emt 0:01:03]} 24. Bc1 {[%emt 0:00:29]} Rxf5 {[%emt 0:00:27]} 25. Qxf5+ {[%emt 0:01:05]} Qxf5 {[%emt 0:00:55]} 26. exf5 {[%emt 0:00:07]} Kg8 {[%emt 0:00:27]} 27. Ba3 {[%emt 0:00:41]} Re8 {[%emt 0:02:13]} 28. Rad1 {[%emt 0:00:48]} Nc6 {[%emt 0:00:13]} 29. Kf1 {[%emt 0:00:52]} e4 {[%emt 0:00:11]} 30. R7d2 {[%emt 0:01:53]} e3 {[%emt 0:00:19]} 31. Re2 {[%emt 0:00:39]} Re5 {[%emt 0:00:12]} 32. g4 {[%emt 0:02:18]} exf2 {[%emt 0:00:10]} 33. Rd8+ {[%emt 0:03:34]} Kh7 {[%emt 0:00:23]} 34. Rxe5 {[%emt 0:02:11]} Nxe5 {[%emt 0:00:07]} 35. c4 {[%emt 0:00:39]} Be3 {[%emt 0:00:27]} 36. Re8 {[%emt 0:01:41]} Nxg4 {[%emt 0:00:19]} 37. Rxe3 {[%emt 0:12:45]} Nxe3+ {[%emt 0:00:06]} 38. Kxf2 {[%emt 0:00:06]} Nxf5 {[%emt 0:00:05]} 39. Bb2 {[%emt 0:00:04]} g6 {[%emt 0:00:43]} 40. Be5 {[%emt 0:00:00]} c6 {[%emt 0:00:00]} 41. Kf3 {[%emt 0:02:36]} gxh5 {[%emt 0:01:10]} 42. Bf6 {[%emt 0:00:17]} Kg6 {[%emt 0:00:10]} 43. Bd8 {[%emt 0:00:06]} f6 {[%emt 0:00:12]} 44. Bc7 {[%emt 0:01:14]} h4 {[%emt 0:00:37]} 45. Kg4 {[%emt 0:00:12]} h5+ {[%emt 0:00:09]} 46. Kh3 {[%emt 0:00:18]} Kg5 {[%emt 0:00:06]} 47. Ba5 {[%emt 0:01:41]} Kf4 {[%emt 0:02:18]} 48. Bd8 {[%emt 0:00:14]} Ke3 {[%emt 0:00:09]} 49. Bxf6 {[%emt 0:00:11]} Kd2 {[%emt 0:00:05]} 50. b4 {[%emt 0:10:39]} Kd3 {[%emt 0:00:19]} 51. c5 {[%emt 0:02:51]} Kc4 {[%emt 0:00:05]} 52. a3 {[%emt 0:00:06]} Kb3 {[%emt 0:00:05]} 53. a4 {[%emt 0:01:18]} Kxb4 {[%emt 0:00:05]} 54. Be5 {[%emt 0:01:23]} Kxa4 {[%emt 0:00:11]} 55. Bb8 {[%emt 0:00:13]} a5 {[%emt 0:00:05]} 56. Bd6 {[%emt 0:00:46]} Kb4 {[%emt 0:00:06]} 57. Kh2 {[%emt 0:00:19]} a4 {[%emt 0:00:06]} 58. Be5 {[%emt 0:00:11]} a3 {[%emt 0:00:10]} 59. Kg2 {[%emt 0:00:19]} Ne3+ {[%emt 0:00:18]} 60. Kh3 {[%emt 0:00:09]} a2 {[%emt 0:00:05]} 61. Kxh4 {[%emt 0:00:17]} Nc2 {[%emt 0:00:54]} 62. Kxh5 {[%emt 0:01:25]} a1=Q {[%emt 0:00:08]} 63. Bxa1 {[%emt 0:00:06]} Nxa1 {[%emt 0:00:08]} 64. Kg5 {[%emt 0:00:10]} Kxc5 {[%emt 0:00:14]} 65. Kh6 {[%emt 0:00:05]} b5 {[%emt 0:00:08]} 66. Kh7 {[%emt 0:00:05]} b4 {[%emt 0:00:18]} 67. Kh8 {[%emt 0:00:06]} b3 {[%emt 0:00:28]} 68. Kg8 {[%emt 0:00:06]} b2 {[%emt 0:00:04]} 69. Kh8 {[%emt 0:00:05]} b1=Q {[%emt 0:00:08]} 70. Kg7 {[%emt 0:00:03]} Qf5 {[%emt 0:00:10]} 71. Kh8 {[%emt 0:00:05]} Qg5 {[%emt 0:00:07]} 72. Kh7 {[%emt 0:00:04]} Kd6 {[%emt 0:00:08]} 73. Kh8 {[%emt 0:00:04]} Ke7 {[%emt 0:00:34]} 74. Kh7 {[%emt 0:00:04]} Kf7 {[%emt 0:00:01]} 75. Kh8 {[%emt 0:00:06]} Qg7# {[%emt 0:00:02]} 0-1

[Event "FIDE WCCC G10 2018"]
[Site "Santiago de Compostela"]
[Date "2018.11.14"]
[Round "10"]
[White "Cereijo Suarez, Nerea"]
[Black "Pheng, Sophia"]
[Result "0-1"]
[ECO "E69"]
[WhiteElo "1368"]
[BlackElo "1022"]
[Annotator "NA RC"]
[PlyCount "62"]
[EventDate "2018.11.04"]
[EventType "swiss"]
[EventCountry "ESP"]
[SourceTitle "playchess.com"]
[Source "ChessBase"]
[SourceQuality "1"]
[TimeControl "40/5400+30:1800+30"]

1. d4 {[%emt 0:00:00]} Nf6 {[%emt 0:00:00]} 2. c4 {[%emt 0:00:13]} g6 {[%emt 0:00:00]} 3. Nc3 {[%emt 0:00:18]} Bg7 {[%emt 0:00:06]} 4. Nf3 {[%emt 0:00:37]} O-O {[%emt 0:00:29]} 5. g3 {[%emt 0:00:15]} d6 {[%emt 0:00:12]} 6. Bg2 {[%emt 0:00:26]} Nbd7 {[%emt 0:01:08]} 7. O-O {[%emt 0:00:55]} e5 {[%emt 0:04:37]} 8. e4 {[%emt 0:02:12]} c6 {[%emt 0:05:18]} 9. h3 {[%emt 0:08:55]} h6 {[%emt 0:05:32]} 10. a3 {[%emt 0:02:38]} a5 {[%emt 0:01:44]} 11. b3 {[%emt 0:00:59]} Re8 {[%emt 0:03:22]} 12. d5 {[%emt 0:08:02]} Nc5 {[%emt 0:00:57]} 13. dxc6 {[%emt 0:01:54]} bxc6 {[%emt 0:05:03]} 14. Re1 {[%emt 0:04:11]} Qc7 {[%emt 0:04:29]} 15. Bb2 {[%emt 0:03:57]} Rb8 {[%emt 0:01:53]} 16. Nd2 {[%emt 0:14:29]} Nd3 {[%emt 0:00:58]} 17. Re3 {[%emt 0:00:19]} Nxb2 {[%emt 0:00:55]} 18. Qc2 {[%emt 0:00:14]} Nxc4 {[%emt 0:01:44]} 19. Nxc4 {[%emt 0:00:14]} Be6 {[%emt 0:01:50]} 20. Ne2 {[%emt 0:02:46]} d5 {[%emt 0:02:22]} 21. exd5 {[%emt 0:01:34]} cxd5 {[%emt 0:05:34]} 22. Rxe5 {[%emt 0:03:06]} dxc4 {[%emt 0:00:12]} 23. Re3 {[%emt 0:00:28]} Nd5 {[%emt 0:00:32]} 24. Bxd5 {[%emt 0:00:56]} Bxa1 {[%emt 0:00:57]} 25. Bxe6 {[%emt 0:01:07]} fxe6 {[%emt 0:07:30]} 26. Qxg6+ {[%emt 0:00:53]} Bg7 {[%emt 0:00:33]} 27. Rxe6 {[%emt 0:00:16]} Qd7 {[%emt 0:01:42]} 28. Rd6 {[%emt 0:00:34]} Qxh3 {[%emt 0:01:01]} 29. Qc2 {[%emt 0:02:30]} cxb3 {[%emt 0:00:46]} 30. Qc4+ {[%emt 0:00:08]} Kh8 {[%emt 0:00:12]} 31. Rd1 {[%emt 0:00:41]} b2 {[%emt 0:00:41]} 0-1

[Event "FIDE WCCC G10 2018"]
[Site "Santiago de Compostela"]
[Date "2018.11.14"]
[Round "10"]
[White "Vu, My Linh"]
[Black "Szczotka, Klara"]
[Result "1-0"]
[ECO "A80"]
[WhiteElo "1349"]
[BlackElo "1581"]
[Annotator "NA RC"]
[PlyCount "109"]
[EventDate "2018.11.04"]
[EventType "swiss"]
[EventCountry "ESP"]
[SourceTitle "playchess.com"]
[Source "ChessBase"]
[SourceQuality "1"]
[TimeControl "40/5400+30:1800+30"]

1. d4 {[%emt 0:00:00]} f5 {[%emt 0:00:00]} 2. Nc3 {[%emt 0:00:00]} Nf6 {[%emt 0:00:00]} 3. Bg5 {[%emt 0:00:00]} g6 {[%emt 0:00:29]} 4. e3 {[%emt 0:00:49]} Bg7 {[%emt 0:00:26]} 5. Bd3 {[%emt 0:00:44]} h6 {[%emt 0:00:40]} 6. Bf4 {[%emt 0:00:22]} e6 {[%emt 0:01:11]} 7. h4 {[%emt 0:00:56]} d6 {[%emt 0:02:05]} 8. f3 {[%emt 0:01:51]} Qe7 {[%emt 0:02:24]} 9. Bc4 {[%emt 0:03:16]} Nh5 {[%emt 0:09:11]} 10. Nge2 {[%emt 0:00:54]} c6 {[%emt 0:03:05]} 11. g4 {[%emt 0:02:06]} Nxf4 {[%emt 0:01:58]} 12. Nxf4 {[%emt 0:00:13]} Qf6 {[%emt 0:12:48]} 13. gxf5 {[%emt 0:02:25]} exf5 {[%emt 0:03:42]} 14. h5 {[%emt 0:01:58]} g5 {[%emt 0:01:14]} 15. Ng6 {[%emt 0:00:16]} Rh7 {[%emt 0:00:40]} 16. Bg8 {[%emt 0:00:13]} Rh8 {[%emt 0:00:21]} 17. Nxh8 {[%emt 0:00:08]} Bxh8 {[%emt 0:00:04]} 18. d5 {[%emt 0:01:29]} c5 {[%emt 0:00:37]} 19. Bh7 {[%emt 0:00:57]} Nd7 {[%emt 0:03:44]} 20. e4 {[%emt 0:13:48]} Ne5 {[%emt 0:04:58]} 21. exf5 {[%emt 0:06:39]} Bxf5 {[%emt 0:01:24]} 22. Bxf5 {[%emt 0:04:19]} Qxf5 {[%emt 0:00:20]} 23. Rf1 {[%emt 0:00:14]} Kd7 {[%emt 0:00:15]} 24. Qe2 {[%emt 0:04:59]} Rf8 {[%emt 0:15:32]} 25. O-O-O {[%emt 0:05:24]} Nxf3 {[%emt 0:14:21]} 26. Rxf3 {[%emt 0:19:21]} Qxf3 {[%emt 0:01:58]} 27. Qe6+ {[%emt 0:00:09]} Kc7 {[%emt 0:10:29]} 28. Qe7+ {[%emt 0:00:42]} Kb8 {[%emt 0:02:59]} 29. Qxd6+ {[%emt 0:01:03]} Ka8 {[%emt 0:00:40]} 30. Nb5 {[%emt 0:00:49]} Qf4+ {[%emt 0:04:00]} 31. Qxf4 {[%emt 0:00:23]} gxf4 {[%emt 0:00:49]} 32. d6 {[%emt 0:00:24]} Rd8 {[%emt 0:01:58]} 33. Nc7+ {[%emt 0:00:10]} Kb8 {[%emt 0:00:24]} 34. Ne6 {[%emt 0:00:08]} Rd7 {[%emt 0:00:29]} 35. Nxc5 {[%emt 0:00:06]} Rd8 {[%emt 0:00:07]} 36. d7 {[%emt 0:00:54]} Bf6 {[%emt 0:01:24]} 37. Ne6 {[%emt 0:00:15]} Rg8 {[%emt 0:00:13]} 38. d8=Q+ {[%emt 0:00:24]} Bxd8 {[%emt 0:00:11]} 39. Rxd8+ {[%emt 0:00:05]} Rxd8 {[%emt 0:00:07]} 40. Nxd8 {[%emt 0:00:00]} f3 {[%emt 0:00:00]} 41. Kd2 {[%emt 0:00:09]} Kc7 {[%emt 0:00:17]} 42. Nf7 {[%emt 0:00:07]} Kd7 {[%emt 0:00:06]} 43. Nxh6 {[%emt 0:00:18]} Ke6 {[%emt 0:00:05]} 44. Ke3 {[%emt 0:00:11]} Kf6 {[%emt 0:00:05]} 45. Ng4+ {[%emt 0:00:20]} Kg7 {[%emt 0:00:26]} 46. Kxf3 {[%emt 0:00:11]} Kh7 {[%emt 0:00:04]} 47. Kf4 {[%emt 0:00:18]} Kg7 {[%emt 0:00:05]} 48. Kg5 {[%emt 0:00:22]} Kh7 {[%emt 0:00:06]} 49. h6 {[%emt 0:00:16]} b5 {[%emt 0:00:19]} 50. Nf6+ {[%emt 0:00:16]} Kh8 {[%emt 0:00:13]} 51. Kg6 {[%emt 0:00:28]} a5 {[%emt 0:00:17]} 52. h7 {[%emt 0:00:18]} b4 {[%emt 0:00:10]} 53. Ng8 {[%emt 0:00:11]} b3 {[%emt 0:00:13]} 54. Nh6 {[%emt 0:00:07]} bxc2 {[%emt 0:00:05]} 55. Nf7# {[%emt 0:00:06]} 1-0

[Event "FIDE WCCC G10 2018"]
[Site "Santiago de Compostela"]
[Date "2018.11.14"]
[Round "10"]
[White "Kurmanalina, Deniza"]
[Black "Morden, SImone"]
[Result "1-0"]
[ECO "C24"]
[WhiteElo "1320"]
[BlackElo "1443"]
[Annotator "NA RC"]
[PlyCount "101"]
[EventDate "2018.11.04"]
[EventType "swiss"]
[EventCountry "ESP"]
[SourceTitle "playchess.com"]
[Source "ChessBase"]
[SourceQuality "1"]
[TimeControl "40/5400+30:1800+30"]

1. e4 {[%emt 0:00:00]} e5 {[%emt 0:00:00]} 2. Bc4 {[%emt 0:00:00]} Nf6 {[%emt 0:00:12]} 3. d3 {[%emt 0:00:00]} c6 {[%emt 0:00:24]} 4. Nf3 {[%emt 0:00:00]} d5 {[%emt 0:00:21]} 5. Bb3 {[%emt 0:00:02]} Nbd7 {[%emt 0:00:26]} 6. O-O {[%emt 0:02:17]} Bd6 {[%emt 0:01:14]} 7. Re1 {[%emt 0:02:57]} O-O {[%emt 0:01:56]} 8. Nbd2 {[%emt 0:00:57]} Qc7 {[%emt 0:01:35]} 9. Nf1 {[%emt 0:00:20]} h6 {[%emt 0:00:18]} 10. Ng3 {[%emt 0:00:31]} Nc5 {[%emt 0:00:57]} 11. h3 {[%emt 0:02:46]} Nxb3 12. axb3 Bd7 {[%emt 0:02:31]} 13. Nh4 {[%emt 0:00:57]} Bc5 {[%emt 0:02:26]} 14. Qf3 {[%emt 0:03:49]} Qd8 {[%emt 0:02:30]} 15. Nhf5 {[%emt 0:01:30]} dxe4 16. dxe4 Kh7 {[%emt 0:04:04]} 17. Rd1 {[%emt 0:26:03]} Rg8 {[%emt 0:04:09]} 18. Be3 {[%emt 0:04:25]} Bxe3 {[%emt 0:01:20]} 19. Qxe3 {[%emt 0:00:08]} Qc7 {[%emt 0:01:07]} 20. Rxa7 {[%emt 0:19:46]} Rxa7 {[%emt 0:01:57]} 21. Qxa7 {[%emt 0:00:09]} Bxf5 {[%emt 0:01:06]} 22. exf5 {[%emt 0:00:32]} Nd5 {[%emt 0:00:45]} 23. Qa4 {[%emt 0:01:43]} Rd8 {[%emt 0:02:39]} 24. Re1 {[%emt 0:02:13]} Re8 {[%emt 0:03:13]} 25. Qe4 {[%emt 0:00:51]} Nf6 {[%emt 0:06:23]} 26. Qc4 {[%emt 0:01:43]} Kg8 {[%emt 0:02:12]} 27. Ne4 {[%emt 0:01:32]} Nd5 {[%emt 0:02:05]} 28. Qd3 {[%emt 0:01:33]} Qa5 {[%emt 0:02:27]} 29. Rf1 {[%emt 0:02:23]} Rf8 {[%emt 0:04:29]} 30. Qg3 {[%emt 0:03:46]} Nf4 {[%emt 0:02:12]} 31. Kh1 {[%emt 0:02:16]} Qd5 {[%emt 0:03:06]} 32. Nf6+ {[%emt 0:00:20]} Kh8 {[%emt 0:00:04]} 33. Nxd5 {[%emt 0:00:04]} cxd5 {[%emt 0:00:15]} 34. Re1 {[%emt 0:00:35]} f6 {[%emt 0:00:19]} 35. Qc3 {[%emt 0:00:38]} Rg8 {[%emt 0:01:12]} 36. Qb4 {[%emt 0:00:15]} g6 {[%emt 0:00:27]} 37. g3 {[%emt 0:02:00]} Nxh3 {[%emt 0:01:11]} 38. Kg2 {[%emt 0:00:10]} Ng5 {[%emt 0:00:18]} 39. fxg6 {[%emt 0:00:19]} Rxg6 {[%emt 0:00:10]} 40. Qxb7 {[%emt 0:00:04]} d4 {[%emt 0:01:16]} 41. Ra1 {[%emt 0:00:00]} Rg8 {[%emt 0:00:00]} 42. Qe7 {[%emt 0:00:17]} Rg7 {[%emt 0:00:00]} 43. Qxf6 {[%emt 0:00:32]} Nf7 {[%emt 0:01:01]} 44. Ra7 {[%emt 0:00:22]} Kg8 {[%emt 0:00:33]} 45. Ra8+ {[%emt 0:00:10]} Kh7 {[%emt 0:00:06]} 46. Qf5+ {[%emt 0:00:10]} Rg6 {[%emt 0:00:07]} 47. Qxf7+ {[%emt 0:00:05]} Rg7 {[%emt 0:00:08]} 48. Qf5+ {[%emt 0:00:07]} Rg6 {[%emt 0:00:06]} 49. Ra7+ {[%emt 0:00:03]} Kg8 {[%emt 0:00:14]} 50. Qxg6+ {[%emt 0:00:07]} Kf8 {[%emt 0:00:08]} 51. Qf7# {[%emt 0:00:03]} 1-0

[Event "FIDE WCCC G10 2018"]
[Site "Santiago de Compostela"]
[Date "2018.11.14"]
[Round "10"]
[White "Chekhani, Anna"]
[Black "Keerthana Easwar"]
[Result "1-0"]
[ECO "A01"]
[WhiteElo "1288"]
[BlackElo "1410"]
[Annotator "NA RC"]
[PlyCount "87"]
[EventDate "2018.11.04"]
[EventType "swiss"]
[EventCountry "ESP"]
[SourceTitle "playchess.com"]
[Source "ChessBase"]
[SourceQuality "1"]
[TimeControl "40/5400+30:1800+30"]

1. b3 {[%emt 0:00:00]} e5 {[%emt 0:00:08]} 2. Bb2 {[%emt 0:00:00]} Nc6 {[%emt 0:00:22]} 3. e3 {[%emt 0:00:02]} Nf6 {[%emt 0:00:24]} 4. Bb5 {[%emt 0:00:31]} Bd6 {[%emt 0:00:31]} 5. Ne2 {[%emt 0:00:36]} e4 {[%emt 0:00:32]} 6. Ng3 {[%emt 0:02:09]} O-O {[%emt 0:01:13]} 7. O-O {[%emt 0:00:48]} Be5 {[%emt 0:01:44]} 8. Nc3 {[%emt 0:08:56]} d5 {[%emt 0:01:03]} 9. Be2 {[%emt 0:09:31]} g6 {[%emt 0:03:48]} 10. f4 {[%emt 0:04:23]} exf3 {[%emt 0:03:02]} 11. Bxf3 {[%emt 0:01:19]} Be6 {[%emt 0:04:43]} 12. Na4 {[%emt 0:08:09]} Bxb2 {[%emt 0:03:53]} 13. Nxb2 {[%emt 0:00:05]} Ne5 {[%emt 0:03:43]} 14. Nd3 {[%emt 0:08:47]} Nxd3 {[%emt 0:09:26]} 15. cxd3 {[%emt 0:00:08]} c6 {[%emt 0:02:11]} 16. Qc2 {[%emt 0:10:11]} Bg4 {[%emt 0:06:32]} 17. Qb2 {[%emt 0:02:11]} Bxf3 {[%emt 0:01:38]} 18. Rxf3 {[%emt 0:00:05]} Nd7 {[%emt 0:01:33]} 19. Nh5 {[%emt 0:01:29]} f6 {[%emt 0:04:38]} 20. Nf4 {[%emt 0:02:44]} Qe7 {[%emt 0:00:57]} 21. Qc2 {[%emt 0:13:34]} Nc5 {[%emt 0:06:37]} 22. Raf1 {[%emt 0:04:48]} Ne6 {[%emt 0:05:21]} 23. Nxe6 {[%emt 0:01:40]} Qxe6 {[%emt 0:00:08]} 24. Qc3 {[%emt 0:00:18]} f5 {[%emt 0:00:08]} 25. Qb4 {[%emt 0:01:33]} Qc8 {[%emt 0:01:34]} 26. e4 {[%emt 0:00:35]} c5 {[%emt 0:00:42]} 27. Qa4 {[%emt 0:00:25]} dxe4 {[%emt 0:00:58]} 28. Qc4+ {[%emt 0:00:29]} Kh8 {[%emt 0:00:45]} 29. dxe4 {[%emt 0:00:10]} b6 {[%emt 0:02:50]} 30. exf5 {[%emt 0:00:29]} gxf5 {[%emt 0:01:34]} 31. Qc3+ {[%emt 0:00:06]} Kg8 {[%emt 0:00:10]} 32. Rg3+ {[%emt 0:00:03]} Kf7 {[%emt 0:00:44]} 33. Qg7+ {[%emt 0:00:19]} Ke6 {[%emt 0:00:15]} 34. Re3+ {[%emt 0:00:12]} Kd6 {[%emt 0:00:23]} 35. Qe7+ {[%emt 0:00:21]} Kc6 {[%emt 0:00:16]} 36. Re6+ {[%emt 0:00:49]} Kb5 {[%emt 0:00:26]} 37. a4+ {[%emt 0:00:31]} Ka6 {[%emt 0:00:55]} 38. Rfe1 {[%emt 0:05:49]} Qd8 {[%emt 0:01:56]} 39. Qxc5 {[%emt 0:00:22]} Qxd2 {[%emt 0:02:04]} 40. Qb5+ {[%emt 0:00:00]} Kb7 {[%emt 0:00:00]} 41. Qc6+ {[%emt 0:00:42]} Ka6 {[%emt 0:02:22]} 42. Qc4+ {[%emt 0:00:04]} Kb7 {[%emt 0:00:09]} 43. Re7+ {[%emt 0:00:04]} Kb8 {[%emt 0:00:35]} 44. Qc7# {[%emt 0:00:06]} 1-0

[Event "FIDE WCCC G10 2018"]
[Site "Santiago de Compostela"]
[Date "2018.11.14"]
[Round "10"]
[White "Wen, Kally"]
[Black "Kleymenova, Valeria"]
[Result "0-1"]
[ECO "C15"]
[WhiteElo "1195"]
[BlackElo "1773"]
[Annotator "NA RC"]
[PlyCount "124"]
[EventDate "2018.11.04"]
[EventType "swiss"]
[EventCountry "ESP"]
[SourceTitle "playchess.com"]
[Source "ChessBase"]
[SourceQuality "1"]
[TimeControl "40/5400+30:1800+30"]

1. e4 {[%emt 0:00:00]} e6 {[%emt 0:00:00]} 2. d4 {[%emt 0:00:00]} d5 {[%emt 0:00:00]} 3. Nc3 {[%emt 0:00:03]} Bb4 {[%emt 0:00:00]} 4. exd5 {[%emt 0:00:20]} exd5 {[%emt 0:00:26]} 5. Bd3 {[%emt 0:00:17]} Nf6 {[%emt 0:00:47]} 6. Nge2 {[%emt 0:00:15]} h6 {[%emt 0:02:02]} 7. a3 {[%emt 0:02:01]} Be7 {[%emt 0:02:01]} 8. O-O {[%emt 0:03:26]} O-O {[%emt 0:04:26]} 9. f3 {[%emt 0:06:44]} c6 {[%emt 0:04:02]} 10. Ng3 {[%emt 0:05:02]} Bd6 {[%emt 0:11:55]} 11. Nce2 {[%emt 0:04:48]} Qc7 {[%emt 0:01:51]} 12. Bd2 {[%emt 0:12:59]} b6 {[%emt 0:04:58]} 13. Qc1 {[%emt 0:09:02]} Ba6 {[%emt 0:11:28]} 14. Bxa6 {[%emt 0:00:25]} Nxa6 {[%emt 0:00:06]} 15. Bf4 {[%emt 0:06:06]} c5 {[%emt 0:09:15]} 16. Bxd6 {[%emt 0:07:26]} Qxd6 {[%emt 0:00:19]} 17. Nf5 {[%emt 0:01:23]} Qd7 {[%emt 0:05:45]} 18. Neg3 {[%emt 0:05:05]} Nc7 {[%emt 0:04:29]} 19. c4 {[%emt 0:05:40]} Ne6 {[%emt 0:06:35]} 20. Rd1 {[%emt 0:04:37]} Nxd4 {[%emt 0:09:00]} 21. Nxd4 {[%emt 0:01:05]} cxd4 {[%emt 0:00:03]} 22. Rxd4 {[%emt 0:00:47]} Rac8 {[%emt 0:01:16]} 23. Kh1 {[%emt 0:03:54]} Qc7 {[%emt 0:01:41]} 24. Qc3 {[%emt 0:02:25]} dxc4 {[%emt 0:00:33]} 25. Rc1 {[%emt 0:01:53]} Rfe8 {[%emt 0:00:37]} 26. Nf5 {[%emt 0:01:45]} Re5 {[%emt 0:04:33]} 27. Nd6 {[%emt 0:01:37]} Nd5 {[%emt 0:02:28]} 28. Rxd5 {[%emt 0:02:06]} Rxd5 {[%emt 0:00:07]} 29. Nxc8 {[%emt 0:00:13]} Qxc8 {[%emt 0:00:05]} 30. Qe3 {[%emt 0:02:22]} Qd7 {[%emt 0:02:11]} 31. h3 {[%emt 0:01:02]} b5 {[%emt 0:00:41]} 32. Qf4 {[%emt 0:02:03]} Qd6 {[%emt 0:02:29]} 33. Qe4 {[%emt 0:00:46]} Qe5 {[%emt 0:01:00]} 34. Qc2 {[%emt 0:01:41]} Rd3 {[%emt 0:02:07]} 35. a4 {[%emt 0:01:50]} a6 {[%emt 0:00:23]} 36. axb5 {[%emt 0:01:20]} axb5 {[%emt 0:00:06]} 37. Ra1 {[%emt 0:01:25]} g6 {[%emt 0:01:12]} 38. Rb1 {[%emt 0:00:42]} Qe3 {[%emt 0:00:32]} 39. Rd1 {[%emt 0:02:17]} Kg7 {[%emt 0:01:45]} 40. Rb1 {[%emt 0:00:00]} Qd2 {[%emt 0:00:00]} 41. Qxd2 {[%emt 0:03:36]} Rxd2 {[%emt 0:02:56]} 42. g4 {[%emt 0:00:34]} Rf2 {[%emt 0:00:43]} 43. Kg1 {[%emt 0:01:25]} Rxf3 {[%emt 0:00:05]} 44. Kg2 {[%emt 0:00:07]} Rb3 {[%emt 0:00:05]} 45. h4 {[%emt 0:02:09]} c3 {[%emt 0:01:08]} 46. Rc1 {[%emt 0:00:37]} Rxb2+ {[%emt 0:00:10]} 47. Kf3 {[%emt 0:00:08]} b4 {[%emt 0:00:10]} 48. Ke3 {[%emt 0:00:35]} c2 {[%emt 0:00:13]} 49. Kd2 {[%emt 0:00:07]} b3 {[%emt 0:00:16]} 50. g5 {[%emt 0:00:51]} Rb1 {[%emt 0:00:06]} 51. Rxc2 {[%emt 0:00:23]} bxc2 {[%emt 0:00:04]} 52. Kxc2 {[%emt 0:00:08]} Rh1 {[%emt 0:00:06]} 53. gxh6+ {[%emt 0:00:08]} Kxh6 {[%emt 0:00:02]} 54. h5 {[%emt 0:00:16]} Rxh5 {[%emt 0:00:05]} 55. Kd2 {[%emt 0:00:07]} f5 {[%emt 0:00:03]} 56. Ke2 {[%emt 0:00:09]} g5 {[%emt 0:00:06]} 57. Kf2 {[%emt 0:00:04]} g4 {[%emt 0:00:08]} 58. Kg3 {[%emt 0:00:08]} Kg5 {[%emt 0:00:03]} 59. Kf2 {[%emt 0:00:06]} f4 {[%emt 0:00:04]} 60. Kf1 {[%emt 0:00:06]} g3 {[%emt 0:00:09]} 61. Kg1 {[%emt 0:00:07]} f3 {[%emt 0:01:04]} 62. Kf1 {[%emt 0:00:11]} Rh1# {[%emt 0:00:03]} 0-1